lending/lending_fUSD_20260222
["ID","MTS","AMOUNT","RATE_DAILY","PERIOD"]
[406327974,1771746643375,-741.0,0.00042161,30]
[406327975,1771746643384,-729.0,0.00042161,30]
[406327976,1771746643394,-743.0,0.00042161,30]
[406327977,1771746643402,-741.0,0.00042161,30]
[406327978,1771746643411,-736.0,0.00042161,30]
[406327979,1771746643420,-742.0,0.00042161,30]
[406327980,1771746643562,-727.0,0.00042161,30]
[406327981,1771746643572,-755.0,0.00042161,30]
[406327982,1771746643582,-751.0,0.00042161,30]
[406327983,1771746643593,-748.0,0.00042161,30]
[406327984,1771746643603,-740.0,0.00042161,30]
[406327985,1771746643613,-755.0,0.00042161,30]
[406327986,1771746643624,-754.0,0.00042161,30]
[406327987,1771746643634,-743.0,0.00042161,30]
[406327988,1771746643644,-732.0,0.00042161,30]
[406327989,1771746643653,-735.0,0.00042161,30]
[406327990,1771746643661,-754.0,0.00042161,30]
[406327991,1771746643670,-740.0,0.00042161,30]
[406327992,1771746643679,-747.0,0.00042161,30]
[406327993,1771746643689,-173.78509278,0.000422,30]
[406327994,1771746643698,-301.99,0.00042246,60]
[406327995,1771746643707,-33161.0,0.000423,60]
[406327996,1771746643717,-151.0,0.00042354,14]
[406327997,1771746643727,-151.0,0.00042354,14]
[406327998,1771746643736,-151.0,0.00042354,14]
[406327999,1771746643746,-1038.5,0.00042364,30]
[406328000,1771746643755,-158.09,0.00042377,120]
[406328001,1771746643764,-2202.22,0.00042386,2]
[406328002,1771746643773,-21780.06,0.000424,2]
[406328003,1771746643782,-1000.0,0.00042403,120]
[406328004,1771746643792,-150.72,0.00042418,120]
[406328005,1771746643802,-1015.54412308,0.000425,120]
[406328006,1771746643811,-150.72,0.00042518,120]
[406328007,1771746643822,-1150.0,0.00042537,7]
[406328008,1771746643834,-1154.0,0.00042543,7]
[406328009,1771746643845,-152.0,0.000426,120]
[406328010,1771746643855,-150.72,0.00042618,120]
[406328011,1771746643867,-1150.0,0.00042626,2]
[406328012,1771746643878,-5000.0,0.00042631,120]
[406328013,1771746643887,-1150.0,0.00042645,7]
[406328014,1771746643896,-1152.0,0.00042673,2]
[406328015,1771746643906,-439.03,0.00042698,30]
[406328016,1771746643921,-150.72,0.00042718,120]
[406328017,1771746643931,-1150.0,0.00042767,2]
[406328018,1771746643940,-1150.0,0.00042799,120]
[406328019,1771746643950,-156.752413,0.00042803,120]
[406328020,1771746643959,-162.323072,0.00042803,120]
[406328021,1771746643968,-162.323072,0.00042803,120]
[406328022,1771746643978,-162.323072,0.00042803,120]
[406328023,1771746643987,-162.323064,0.00042803,120]
[406328024,1771746643996,-151.0,0.00042803,120]
[406328025,1771746644005,-151.0,0.00042803,120]
[406328026,1771746644015,-150.72,0.00042818,120]
[406328027,1771746644024,-150.0,0.00042823,2]
[406328028,1771746644032,-150.0,0.00042823,2]
[406328029,1771746644042,-199.04896999,0.00042823,2]
[406328030,1771746644051,-1038.5,0.00042849,30]
[406328031,1771746644060,-150.72,0.00042918,120]
[406328032,1771746644070,-1729.0,0.00043,120]
[406328033,1771746644079,-160.0,0.00043,120]
[406328034,1771746644088,-373.0,0.00043,30]
[406328035,1771746644098,-151.0,0.00043,120]
[406328036,1771746644107,-500.607492,0.00043,120]
[406328037,1771746644117,-500.607492,0.00043,120]
[406328038,1771746644126,-500.607492,0.00043,120]
[406328039,1771746644135,-500.607497,0.00043,120]
[406328040,1771746644146,-151.0,0.00043,120]
[406328041,1771746644155,-151.0,0.00043,120]
[406328042,1771746644164,-151.0,0.00043,120]
[406328043,1771746644174,-151.0,0.00043,120]
[406328044,1771746644183,-795.031675,0.00043,7]
[406328045,1771746644192,-795.031675,0.00043,7]
[406328046,1771746644202,-795.031675,0.00043,7]
[406328047,1771746644212,-795.03167,0.00043,7]
[406328048,1771746644223,-245.299121,0.00043,120]
[406328049,1771746644232,-245.299121,0.00043,120]
[406328050,1771746644242,-245.299121,0.00043,120]
[406328051,1771746644251,-245.299128,0.00043,120]
[406328052,1771746644260,-150.72,0.00043018,120]
[406328053,1771746644269,-1150.0,0.00043092,2]
[406328054,1771746644278,-200.419398,0.000431,24]
[406328055,1771746644287,-150.72,0.00043118,120]
[406328056,1771746644296,-150.72,0.00043218,120]
[406328057,1771746644305,-467.8,0.00043219,120]
[406328058,1771746644314,-1154.0,0.00043254,120]
[406328059,1771746644323,-150.72,0.00043318,120]
[406328060,1771746644332,-1038.5,0.00043333,120]
[406328061,1771746644341,-350.0,0.00043391,3]
[406328062,1771746644349,-152.0,0.000434,120]
[406328063,1771746644358,-150.72,0.00043418,120]
[406328064,1771746644367,-1152.0,0.00043423,2]
[406328065,1771746644376,-2840.0,0.0004349,16]
[406328066,1771746644386,-1374.68,0.000435,30]
[406328067,1771746644395,-500.0,0.00043506,60]
[406328068,1771746644403,-500.0,0.00043506,60]
[406328069,1771746644412,-500.0,0.00043506,60]
[406328070,1771746644421,-150.72,0.00043518,120]
[406328071,1771746644430,-1150.0,0.00043612,2]
[406328072,1771746644438,-150.83213544,0.00043618,120]
[406328073,1771746644447,-33161.0,0.0004365,60]
[406328074,1771746644456,-150.0,0.00043673,10]
[406328075,1771746644464,-150.0,0.00043673,10]
[406328076,1771746644473,-151.0,0.000437,120]
[406328077,1771746644482,-200.0,0.00043726,120]
[406328078,1771746644491,-157.54,0.00043726,120]
[406328079,1771746644500,-2570.66730991,0.0004379,2]
[406328080,1771746644508,-2838.0,0.00043801,16]
[406328081,1771746644517,-1190.0,0.00043808,120]
[406328082,1771746644526,-193.99841805,0.00043836,2]
[406328083,1771746644535,-175.4444541,0.00043998,30]
[406328084,1771746644545,-500.0,0.00043999,120]
[406328085,1771746644554,-46861.4,0.00044,120]
[406328086,1771746644563,-550.0,0.00044,20]
[406328087,1771746644573,-151.0,0.00044,120]
[406328088,1771746644582,-373.0,0.00044,30]
[406328089,1771746644591,-150.0,0.00044,10]
[406328090,1771746644601,-151.0,0.000441,120]
[406328091,1771746644610,-397.003704,0.000441,120]
[406328092,1771746644619,-397.003704,0.000441,120]
[406328093,1771746644627,-397.003704,0.000441,120]
[406328094,1771746644636,-222.616575,0.000441,120]
[406328095,1771746644645,-397.003704,0.000441,120]
[406328096,1771746644654,-233.108796,0.000441,120]
[406328097,1771746644663,-233.108796,0.000441,120]
[406328098,1771746644672,-233.108796,0.000441,120]
[406328099,1771746644681,-233.108796,0.000441,120]
[406328100,1771746644689,-871.0,0.00044141,16]
[406328101,1771746644698,-250.0,0.00044221,10]
[406328102,1771746644707,-301.03967204,0.00044221,10]
[406328103,1771746644716,-181.4066685,0.00044274,120]
[406328104,1771746644727,-1200.0,0.000443,16]
[406328105,1771746644736,-152.0,0.000443,120]
[406328106,1771746644745,-500.0,0.00044383,120]
[406328107,1771746644754,-193.59,0.00044383,120]
[406328108,1771746644764,-302.28614622,0.00044383,120]
[406328109,1771746644773,-500.0,0.00044383,5]
[406328110,1771746644781,-500.0,0.00044383,5]
[406328111,1771746644790,-541.50403476,0.00044383,5]
[406328112,1771746644799,-500.0,0.00044383,120]
[406328113,1771746644808,-289.66378432,0.00044383,120]
[406328114,1771746644816,-500.0,0.00044383,30]
[406328115,1771746644826,-500.0,0.00044383,30]
[406328116,1771746644834,-500.0,0.00044383,30]
[406328117,1771746644844,-500.0,0.00044383,30]
[406328118,1771746644853,-500.0,0.00044383,30]
[406328119,1771746644862,-500.0,0.00044383,30]
[406328120,1771746644871,-500.0,0.00044383,30]
[406328121,1771746644884,-478.22253851,0.00044383,30]
[406328122,1771746644893,-500.0,0.00044383,120]
[406328123,1771746644903,-500.0,0.00044383,120]
[406328124,1771746644912,-500.0,0.00044383,120]
[406328125,1771746644922,-500.0,0.00044383,120]
[406328126,1771746644931,-392.72990277,0.00044383,120]
[406328127,1771746644939,-300.74168198,0.00044383,2]
[406328128,1771746644949,-200.0,0.000444,16]
[406328129,1771746644959,-150.0,0.000444,120]
[406328130,1771746644968,-150.0,0.000444,120]
[406328131,1771746644977,-150.0,0.000444,120]
[406328132,1771746644987,-150.0,0.000444,120]
[406328133,1771746644996,-1484.0,0.00044436,16]
[406328134,1771746645005,-200.0,0.000445,16]
[406328135,1771746645014,-167.73514655,0.00044555,14]
[406328136,1771746645023,-1000.0,0.0004458,14]
[406328137,1771746645031,-200.0,0.000446,16]
[406328138,1771746645040,-500.0,0.00044602,60]
[406328139,1771746645049,-500.0,0.00044602,60]
[406328140,1771746645058,-150.0,0.00044654,14]
[406328141,1771746645067,-1290.39436,0.0004469,120]
[406328142,1771746645076,-1290.39437,0.0004469,120]
[406328143,1771746645085,-1290.39437,0.0004469,120]
[406328144,1771746645094,-1290.39437,0.0004469,120]
[406328145,1771746645103,-1290.39436,0.0004469,120]
[406328146,1771746645112,-200.0,0.000447,16]
[406328147,1771746645121,-350.0,0.00044768,10]
[406328148,1771746645130,-1000.0,0.00044769,14]
[406328149,1771746645139,-701.0,0.000448,16]
[406328150,1771746645148,-300.221541,0.00044837,120]
[406328151,1771746645156,-1000.0,0.00044883,30]
[406328152,1771746645165,-1000.0,0.00044933,14]
[406328153,1771746645174,-150.0,0.00044942,14]
[406328154,1771746645183,-3494.0,0.00044954,2]
[406328155,1771746645192,-1040.0,0.00044954,2]
[406328156,1771746645201,-1273.0,0.00044954,2]
[406328157,1771746645210,-2454.0,0.00044954,2]
[406328158,1771746645219,-500.0,0.00044973,10]
[406328159,1771746645228,-156.0,0.00044996,2]
[406328160,1771746645237,-1066.47,0.00044999,120]
[406328161,1771746645246,-500.0,0.00044999,120]
[406328162,1771746645255,-369.8667576,0.00044999,120]
[406328163,1771746645264,-1729.0,0.00045,120]
[406328165,1771746645273,-513.5,0.00045,120]
[406328166,1771746645281,-33161.0,0.00045,60]
[406328167,1771746645290,-150.0,0.00045,10]
[406328168,1771746645299,-233.0,0.00045056,60]
[406328169,1771746645308,-375.0,0.00045056,60]
[406328170,1771746645317,-500.0,0.00045078,120]
[406328171,1771746645326,-200.0,0.00045078,120]
[406328172,1771746645335,-2322.97315529,0.00045082,7]
[406328173,1771746645345,-257.91778498,0.00045083,30]
[406328174,1771746645355,-267.46074303,0.00045083,56]
[406328175,1771746645366,-150.1,0.00045083,8]
[406328176,1771746645374,-150.1,0.00045083,8]
[406328177,1771746645386,-150.1,0.00045083,8]
[406328178,1771746645396,-150.1,0.00045083,8]
[406328179,1771746645407,-150.1,0.00045083,8]
[406328180,1771746645418,-150.1,0.00045083,8]
[406328181,1771746645430,-150.1,0.00045083,8]
[406328182,1771746645439,-150.1,0.00045083,8]
[406328183,1771746645448,-150.1,0.00045083,8]
[406328184,1771746645458,-150.1,0.00045083,8]
[406328185,1771746645467,-150.1,0.00045083,8]
[406328186,1771746645476,-150.1,0.00045083,8]
[406328187,1771746645486,-150.1,0.00045083,8]
[406328188,1771746645495,-150.1,0.00045083,8]
[406328189,1771746645503,-150.1,0.00045083,8]
[406328190,1771746645513,-150.1,0.00045083,8]
[406328191,1771746645522,-150.1,0.00045083,8]
[406328192,1771746645531,-150.1,0.00045083,8]
[406328193,1771746645540,-150.1,0.00045083,8]
[406328194,1771746645549,-150.1,0.00045083,8]
[406328195,1771746645559,-161.45178539,0.00045083,8]
[406328196,1771746645568,-153.98202333,0.00045092,14]
[406328197,1771746645577,-166.0,0.00045092,14]
[406328198,1771746645587,-166.0,0.00045092,14]
[406328199,1771746645597,-1509.0,0.00045092,14]
[406328200,1771746645606,-153.0,0.00045092,14]
[406328201,1771746645615,-166.0,0.00045092,14]
[406328202,1771746645627,-1509.0,0.00045092,14]
[406328203,1771746645636,-153.0,0.00045092,14]
[406328204,1771746645647,-166.0,0.00045092,14]
[406328205,1771746645656,-152.0,0.00045092,14]
[406328206,1771746645666,-1509.0,0.00045092,14]
[406328207,1771746645676,-153.0,0.00045092,14]
[406328208,1771746645685,-152.0,0.00045092,14]
[406328209,1771746645695,-166.0,0.00045092,14]
[406328210,1771746645704,-1509.0,0.00045092,14]
[406328211,1771746645713,-152.0,0.00045092,14]
[406328213,1771746645723,-153.0,0.00045092,14]
[406328215,1771746645732,-159.3020167,0.00045092,14]
[406328216,1771746645742,-166.0,0.00045092,14]
[406328217,1771746645751,-1509.0,0.00045092,14]
[406328219,1771746645760,-152.0,0.00045092,14]
[406328220,1771746645770,-153.0,0.00045092,14]
[406328221,1771746645779,-166.0,0.00045092,14]
[406328222,1771746645787,-1509.0,0.00045092,14]
[406328223,1771746645796,-152.0,0.00045092,14]
[406328224,1771746645806,-153.0,0.00045092,14]
[406328225,1771746645815,-166.0,0.00045092,14]
[406328226,1771746645823,-1509.0,0.00045092,14]
[406328227,1771746645832,-152.0,0.00045092,14]
[406328228,1771746645841,-153.0,0.00045092,14]
[406328229,1771746645850,-171.44889019,0.00045092,14]
[406328230,1771746645859,-1509.0,0.00045092,14]
[406328231,1771746645868,-152.0,0.00045092,14]
[406328232,1771746645881,-153.0,0.00045092,14]
[406328233,1771746645890,-1509.0,0.00045092,14]
[406328234,1771746645899,-152.0,0.00045092,14]
[406328235,1771746645908,-153.0,0.00045092,14]
[406328236,1771746645919,-152.0,0.00045092,14]
[406328237,1771746645929,-1509.0,0.00045092,14]
[406328238,1771746645938,-152.0,0.00045092,14]
[406328239,1771746645949,-153.0,0.00045092,14]
[406328240,1771746645959,-1509.0,0.00045092,14]
[406328241,1771746645970,-152.0,0.00045092,14]
[406328242,1771746645979,-152.0,0.00045092,14]
[406328243,1771746645988,-153.0,0.00045092,14]
[406328244,1771746645997,-152.0,0.00045092,14]
[406328245,1771746646006,-301.90731586,0.00045092,14]
[406328246,1771746646017,-1509.0,0.00045092,14]
[406328247,1771746646026,-153.0,0.00045092,14]
[406328248,1771746646036,-1509.0,0.00045092,14]
[406328249,1771746646044,-152.0,0.00045092,14]
[406328250,1771746646054,-210.13801823,0.00045092,14]
[406328251,1771746646064,-1509.0,0.00045092,14]
[406328252,1771746646073,-152.0,0.00045092,14]
[406328253,1771746646083,-1509.0,0.00045092,14]
[406328254,1771746646092,-225.13132103,0.00045092,14]
[406328255,1771746646100,-1509.0,0.00045092,14]
[406328256,1771746646110,-1509.0,0.00045092,14]
[406328257,1771746646120,-1509.0,0.00045092,14]
[406328258,1771746646130,-1509.0,0.00045092,14]
[406328259,1771746646139,-1509.0,0.00045092,14]
[406328260,1771746646148,-1509.0,0.00045092,14]
[406328262,1771746646157,-1509.0,0.00045092,14]
[406328264,1771746646165,-783.79514301,0.00045092,14]
[406328266,1771746646175,-248.71531821,0.00045099,30]
[406328268,1771746646184,-150.7,0.000451,31]
[406328270,1771746646193,-150.0,0.000451,31]
[406328272,1771746646201,-2005.0,0.000451,7]
[406328274,1771746646210,-150.0,0.000451,86]
[406328275,1771746646219,-240.9,0.000451,86]
[406328276,1771746646228,-189.72,0.000451,51]
[406328277,1771746646236,-1519.621855,0.000451,47]
[406328278,1771746646245,-200.0,0.000451,27]
[406328279,1771746646254,-239.84119403,0.00045107,30]
[406328280,1771746646262,-301.99,0.0004512,120]
[406328281,1771746646271,-8899.10478497,0.00045126,28]
[406328282,1771746646280,-22900.74618278,0.00045126,15]
[406328283,1771746646288,-5668.83434503,0.00045126,15]
[406328284,1771746646297,-220.93223047,0.00045128,2]
[406328285,1771746646305,-7545.94806155,0.00045128,2]
[406328286,1771746646314,-396.5583709,0.00045128,2]
[406328287,1771746646323,-1193.1195574,0.00045128,120]
[406328288,1771746646331,-515.6,0.00045137,120]
[406328289,1771746646341,-500.0,0.00045137,30]
[406328290,1771746646350,-231.28369723,0.00045143,30]
[406328291,1771746646359,-500.0,0.00045143,120]
[406328292,1771746646368,-150.0,0.00045144,2]
[406328293,1771746646376,-2700.66077274,0.00045144,2]
[406328294,1771746646385,-1000.0,0.00045144,2]
[406328295,1771746646394,-1000.0,0.00045144,2]
[406328296,1771746646403,-1000.0,0.00045144,2]
[406328297,1771746646412,-1000.0,0.00045144,2]
[406328298,1771746646422,-1000.0,0.00045144,2]
[406328299,1771746646432,-1000.0,0.00045144,2]
[406328300,1771746646441,-928.1361662,0.00045144,2]
[406328301,1771746646451,-467.8,0.00045144,120]
[406328302,1771746646460,-1290.39437,0.00045144,120]
[406328303,1771746646469,-1000.0,0.00045148,55]
[406328304,1771746646478,-223.0315306,0.00045148,55]
[406328305,1771746646487,-500.0,0.00045148,55]
[406328306,1771746646496,-500.0,0.00045148,55]
[406328307,1771746646505,-200.0,0.00045148,55]
[406328308,1771746646515,-262.27230073,0.00045148,55]
[406328309,1771746646525,-300.0,0.00045148,55]
[406328310,1771746646535,-250.0,0.00045148,55]
[406328311,1771746646546,-668.65185757,0.00045148,55]
[406328312,1771746646555,-151.0,0.00045148,55]
[406328313,1771746646564,-250.0,0.00045148,55]
[406328314,1771746646574,-500.0,0.00045148,55]
[406328315,1771746646583,-500.0,0.00045148,55]
[406328316,1771746646592,-1000.0,0.0004515,10]
[406328317,1771746646601,-1000.0,0.0004515,10]
[406328318,1771746646612,-1000.0,0.0004515,10]
[406328319,1771746646622,-1000.0,0.0004515,10]
[406328320,1771746646631,-1000.0,0.0004515,10]
[406328321,1771746646640,-1000.0,0.0004515,10]
[406328322,1771746646649,-1000.0,0.0004515,10]
[406328323,1771746646658,-1000.0,0.0004515,10]
[406328324,1771746646668,-1000.0,0.0004515,10]
[406328325,1771746646678,-1000.0,0.0004515,10]
[406328326,1771746646807,-1000.0,0.0004515,10]
[406328327,1771746646819,-1000.0,0.0004515,10]
[406328328,1771746646829,-1000.0,0.0004515,10]
[406328329,1771746646839,-1000.0,0.0004515,10]
[406328330,1771746646848,-1000.0,0.0004515,10]
[406328331,1771746646858,-1000.0,0.0004515,10]
[406328332,1771746646867,-1000.0,0.0004515,10]
[406328333,1771746646879,-1000.0,0.0004515,10]
[406328334,1771746646889,-1000.0,0.0004515,10]
[406328335,1771746646898,-1000.0,0.0004515,10]
[406328336,1771746646907,-1000.0,0.0004515,10]
[406328337,1771746646916,-1000.0,0.0004515,10]
[406328338,1771746646926,-1000.0,0.0004515,10]
[406328339,1771746646935,-1000.0,0.0004515,10]
[406328340,1771746646944,-1000.0,0.0004515,10]
[406328341,1771746646954,-1000.0,0.0004515,10]
[406328342,1771746646963,-1000.0,0.0004515,10]
[406328343,1771746646972,-1000.0,0.0004515,10]
[406328344,1771746646981,-1000.0,0.0004515,10]
[406328345,1771746646991,-1000.0,0.0004515,10]
[406328346,1771746646999,-1000.0,0.0004515,10]
[406328347,1771746647008,-1000.0,0.0004515,10]
[406328348,1771746647017,-1000.0,0.0004515,10]
[406328349,1771746647026,-1000.0,0.0004515,10]
[406328350,1771746647035,-1000.0,0.0004515,10]
[406328351,1771746647044,-1000.0,0.0004515,10]
[406328352,1771746647054,-1000.0,0.0004515,10]
[406328353,1771746647063,-1000.0,0.0004515,10]
[406328354,1771746647073,-1000.0,0.0004515,10]
[406328355,1771746647082,-1000.0,0.0004515,10]
[406328356,1771746647091,-1000.0,0.0004515,10]
[406328357,1771746647100,-1000.0,0.0004515,10]
[406328358,1771746647109,-1000.0,0.0004515,10]
[406328359,1771746647119,-1000.0,0.0004515,10]
[406328360,1771746647128,-1000.0,0.0004515,10]
[406328361,1771746647137,-1000.0,0.0004515,10]
[406328362,1771746647146,-1000.0,0.0004515,10]
[406328363,1771746647155,-1000.0,0.0004515,10]
[406328364,1771746647164,-1000.0,0.0004515,10]
[406328365,1771746647173,-1000.0,0.0004515,10]
[406328366,1771746647182,-1000.0,0.0004515,10]
[406328367,1771746647191,-1000.0,0.0004515,10]
[406328368,1771746647201,-1000.0,0.0004515,10]
[406328369,1771746647213,-1000.0,0.0004515,10]
[406328370,1771746647222,-1000.0,0.0004515,10]
[406328371,1771746647231,-1000.0,0.0004515,10]
[406328372,1771746647242,-1000.0,0.0004515,10]
[406328373,1771746647252,-1000.0,0.0004515,10]
[406328374,1771746647261,-1000.0,0.0004515,10]
[406328375,1771746647271,-1000.0,0.0004515,10]
[406328376,1771746647280,-1000.0,0.0004515,10]
[406328377,1771746647289,-1000.0,0.0004515,10]
[406328378,1771746647299,-1000.0,0.0004515,10]
[406328379,1771746647308,-1000.0,0.0004515,10]
[406328380,1771746647318,-1000.0,0.0004515,10]
[406328381,1771746647327,-209.33,0.0004515,10]
[406328382,1771746647339,-151.0,0.0004515,120]
[406328383,1771746647348,-397.003704,0.0004515,120]
[406328384,1771746647358,-397.003704,0.0004515,120]
[406328385,1771746647366,-397.003704,0.0004515,120]
[406328386,1771746647375,-397.003714,0.0004515,120]
[406328387,1771746647386,-233.108796,0.0004515,120]
[406328388,1771746647396,-233.108796,0.0004515,120]
[406328389,1771746647406,-233.108796,0.0004515,120]
[406328390,1771746647414,-233.108802,0.0004515,120]
[406328391,1771746647424,-155.0,0.00045151,120]
[406328392,1771746647433,-500.0,0.00045151,120]
[406328393,1771746647443,-810.07,0.00045151,120]
[406328394,1771746647452,-521.82,0.00045151,2]
[406328395,1771746647461,-500.0,0.00045151,30]
[406328396,1771746647470,-570.01,0.00045151,120]
[406328397,1771746647479,-500.0,0.00045151,120]
[406328398,1771746647489,-500.0,0.00045151,120]
[406328399,1771746647499,-253.74030381,0.00045152,30]
[406328400,1771746647507,-151.0,0.00045152,14]
[406328401,1771746647517,-151.0,0.00045152,14]
[406328402,1771746647526,-235.960556,0.00045152,14]
[406328403,1771746647535,-1000.0,0.00045153,120]
[406328404,1771746647544,-500.0,0.00045153,120]
[406328405,1771746647554,-500.0,0.00045153,120]
[406328406,1771746647563,-200.0,0.00045153,120]
[406328407,1771746647573,-250.0,0.00045153,120]
[406328408,1771746647583,-300.0,0.00045153,120]
[406328409,1771746647592,-250.0,0.00045153,120]
[406328410,1771746647602,-644.79446246,0.00045153,120]
[406328411,1771746647611,-151.0,0.00045153,120]
[406328412,1771746647620,-250.0,0.00045153,120]
[406328413,1771746647630,-500.0,0.00045153,120]
[406328414,1771746647639,-500.0,0.00045153,120]
[406328415,1771746647648,-489.68247632,0.00045154,120]
[406328416,1771746647657,-810.07,0.00045154,120]
[406328417,1771746647667,-810.07,0.00045154,120]
[406328418,1771746647675,-810.07,0.00045154,120]
[406328419,1771746647684,-810.07,0.00045154,120]
[406328420,1771746647694,-810.07,0.00045154,120]
[406328421,1771746647703,-810.07,0.00045154,120]
[406328422,1771746647712,-810.07,0.00045154,120]
[406328423,1771746647721,-810.07,0.00045154,120]
[406328424,1771746647730,-810.07,0.00045154,120]
[406328425,1771746647740,-810.07,0.00045154,120]
[406328426,1771746647749,-810.07,0.00045154,120]
[406328427,1771746647758,-810.07,0.00045154,120]
[406328428,1771746647767,-810.29936362,0.00045154,120]
[406328429,1771746647776,-515.6,0.00045154,120]
[406328430,1771746647785,-515.6,0.00045154,120]
[406328431,1771746647795,-515.6,0.00045154,120]
[406328432,1771746647803,-515.6,0.00045154,120]
[406328433,1771746647813,-515.6,0.00045154,120]
[406328434,1771746647822,-515.6,0.00045154,120]
[406328435,1771746647831,-515.6,0.00045154,120]
[406328436,1771746647841,-515.6,0.00045154,120]
[406328437,1771746647850,-515.6,0.00045154,120]
[406328438,1771746647860,-515.6,0.00045154,120]
[406328439,1771746647870,-515.6,0.00045154,120]
[406328440,1771746647883,-515.6,0.00045154,120]
[406328441,1771746647892,-515.73229053,0.00045154,120]
[406328442,1771746647901,-521.82,0.00045154,2]
[406328443,1771746647911,-521.82,0.00045154,2]
[406328444,1771746647921,-521.82,0.00045154,2]
[406328445,1771746647931,-521.82,0.00045154,2]
[406328446,1771746647941,-521.82,0.00045154,2]
[406328447,1771746647952,-521.82,0.00045154,2]
[406328448,1771746647961,-521.82,0.00045154,2]
[406328449,1771746647970,-521.82,0.00045154,2]
[406328450,1771746647979,-521.82,0.00045154,2]
[406328451,1771746647988,-521.82,0.00045154,2]
[406328452,1771746647997,-521.82,0.00045154,2]
[406328453,1771746648006,-521.82,0.00045154,2]
[406328454,1771746648015,-521.92008438,0.00045154,2]
[406328455,1771746648024,-500.0,0.00045154,30]
[406328456,1771746648033,-500.0,0.00045154,30]
[406328457,1771746648042,-500.0,0.00045154,30]
[406328458,1771746648051,-500.0,0.00045154,30]
[406328459,1771746648060,-500.0,0.00045154,30]
[406328460,1771746648068,-500.0,0.00045154,30]
[406328461,1771746648077,-500.0,0.00045154,30]
[406328462,1771746648086,-500.0,0.00045154,30]
[406328463,1771746648095,-500.0,0.00045154,30]
[406328464,1771746648104,-500.0,0.00045154,30]
[406328465,1771746648113,-438.24,0.00045154,30]
[406328466,1771746648122,-500.0,0.00045154,30]
[406328467,1771746648132,-500.0,0.00045154,30]
[406328468,1771746648140,-500.0,0.00045154,30]
[406328469,1771746648150,-508.21782231,0.00045154,30]
[406328470,1771746648159,-570.01,0.00045154,120]
[406328471,1771746648168,-570.01,0.00045154,120]
[406328472,1771746648177,-570.01,0.00045154,120]
[406328473,1771746648186,-570.01,0.00045154,120]
[406328474,1771746648195,-570.01,0.00045154,120]
[406328475,1771746648203,-570.01,0.00045154,120]
[406328476,1771746648212,-570.01,0.00045154,120]
[406328477,1771746648222,-570.01,0.00045154,120]
[406328478,1771746648230,-570.01,0.00045154,120]
[406328479,1771746648239,-570.01,0.00045154,120]
[406328480,1771746648248,-570.01,0.00045154,120]
[406328481,1771746648257,-570.01,0.00045154,120]
[406328482,1771746648270,-570.08378707,0.00045154,120]
[406328483,1771746648290,-500.0,0.00045154,120]
[406328484,1771746648301,-500.0,0.00045154,120]